Cogmind - Beta 10.1 *** ADVENTURER MODE // 2020.09.23 @ 15:06:13 Player: HOTSOUP Result: Destroyed by Fusion Bomb Trap Performance ------------- Evolutions (7) 3500 Regions Visited (12) 2400 Robots Destroyed (147) 735 Value Destroyed (6377) 6377 Prototype IDs (8) 160 Alien Tech Used (0) 0 Bonus (1460) 1460 TOTAL SCORE: 14632 Bonus ------- High Alert Combat Kills 420 Follower Combat Kills 908 Entered Garrisons 200 Used RIF Installer 500 Aligned with FarCom 300 Friendly Fire -868 Cogmind --------- Core Integrity 0/1300 Matter 205/300 Energy 99/100 System Corruption 18% Temperature Cool (0) Movement Core (50) Location -3/Research Parts ------- > --- POWER (2) -------- (None) > --- PROPULSION (3) --- (None) > --- UTILITY (9) ------ Advanced Signal Interpreter > --- WEAPON (7) ------- (None) > --- INVENTORY (4) ---- Medium Matter Pod (100) Matter Compressor (250) Relay Coupler [Grunt] (31) Relay Coupler [Sentry] (26) Peak State ------------ > --- POWER ------------ Light Antimatter Reactor Particle Reactor > --- PROPULSION ------- Armored Wheel Armored Wheel > --- UTILITY ---------- Improved Heat Sink Advanced Cooling System High-capacity Storage Unit Energy Well Improved Phase Shifter Improved Focal Shield Relay Coupler [Grunt] Relay Coupler [Sentry] Relay Coupler [Hunter] > --- WEAPON ----------- High-powered Shock Rifle Phase Gun Phase Gun Disruptor Cannon Compact HERF Cannon Improved Remote Datajack Spear > --- INVENTORY -------- Heavy Treads Medium Matter Pod Matter Compressor Advanced Sensor Array Relay Coupler [Grunt] Relay Coupler [Grunt] Relay Coupler [Sentry] Relay Coupler [Sentry] Relay Coupler [Hunter] Relay Coupler [Behemoth] Segregator [Rating: 107] Favorites ----------- Power Neutrino Core Engine Deuterium Engine Power Core Neutrino Core Reactor Light Antimatter Reactor Propulsion Wheel Treads Armored Treads Leg Myomer Leg Wheel Wheel Hover Unit Antigrav System Utility Advanced Targeting Computer Device Remote Force Field Storage High-capacity Storage Unit Processor Advanced Targeting Computer Hackware Relay Coupler [Grunt] Protection Improved Light Armor Plating Weapon Phase Gun Energy Gun Phase Gun Energy Cannon Plasma Cannon Ballistic Gun Gauss Rifle Ballistic Cannon Bore Cannon Launcher Rocket Launcher Special Weapon Improved Remote Datajack Impact Weapon Mace Slashing Weapon Segregator Piercing Weapon Spear Build | -11 -10 -10 -10 -9 -8 -7 -6 -5 -5 -4 -4 -3 ------- Run | Scr Mat Min Exi Min Mat Fac Fac Fac Ext Fac Gar Res Slots Evolved 14 | . . . . . 4 2 2 2 . 2 . 2 Power 1 | . . . . . 1 . . . . . . . Propulsion 1 | . . . . . . . . . . 1 . . Utility 7 | . . . . . 1 1 2 2 . . . 1 Weapon 5 | . . . . . 2 1 . . . 1 . 1 Parts Attached 200 | 5 3 12 2 1 6 12 13 4 60 17 45 20 Power 23 | 1 . 2 . 1 2 . . . 11 1 4 1 Engine 9 | 1 . 2 . 1 1 . . . 4 . . . Core 9 | . . . . . 1 . . . 7 . 1 . Reactor 5 | . . . . . . . . . . 1 3 1 Propulsion 31 | 2 . 5 . . . 3 . . 6 3 8 4 Treads 14 | 2 . . . . . 2 . . 4 2 3 1 Leg 5 | . . 2 . . . . . . . . 2 1 Wheel 9 | . . 2 . . . 1 . . . 1 3 2 Hover 3 | . . 1 . . . . . . 2 . . . Flight . | . . . . . . . . . . . . . Utility 46 | 1 2 1 1 . 1 3 7 2 11 3 7 7 Device 22 | . 1 . 1 . . . 5 2 7 2 2 2 Storage 8 | 1 1 . . . . 1 1 . 1 . 3 . Processor 9 | . . 1 . . 1 2 . . 2 . 2 1 Hackware 4 | . . . . . . . . . . . . 4 Protection 3 | . . . . . . . 1 . 1 1 . . Artifact . | . . . . . . . . . . . . . Weapon 100 | 1 1 4 1 . 3 6 6 2 32 10 26 8 Energy Gun 17 | . 1 . . . . . . . 4 1 11 . Energy Cannon 24 | . . . 1 . . . 3 2 7 3 6 2 Ballistic Gun 12 | 1 . . . . . 2 . . 5 3 . 1 Ballistic Cannon 11 | . . . . . . 1 2 . 7 . 1 . Launcher 18 | . . 3 . . 2 2 . . 7 2 2 . Special Weapon 4 | . . 1 . . . . . . . . . 3 Impact Weapon 2 | . . . . . 1 1 . . . . . . Slashing Weapon 1 | . . . . . . . . . . . . 1 Piercing Weapon 11 | . . . . . . . 1 . 2 1 6 1 Special Melee Weapon . | . . . . . . . . . . . . . Unidentified Prototypes 4 | . . . 1 . . . 1 . . 1 . 1 Parts Lost 56 | . . 5 . . . . . . 14 . 12 25 Power 6 | . . 2 . . . . . . 1 . 1 2 Propulsion 12 | . . 1 . . . . . . 2 . 4 5 Utility 16 | . . . . . . . . . 3 . 4 9 Weapon 22 | . . 2 . . . . . . 8 . 3 9 Highest Loss Streak 22 | . . 4 . . . . . . 5 . 7 22 Average Slot Usage (%) 85 | . 91 74 85 85 85 86 85 86 95 93 90 47 Engine 5 | . 14 10 14 14 12 7 6 5 2 . . . Core 4 | . . . . . 1 7 6 5 7 7 4 . Reactor 1 | . . . . . . . . . . 2 5 3 Treads 4 | . 28 3 . . . 2 . . 7 5 2 . Wheel 7 | . . 5 28 28 18 7 6 5 . 4 6 4 Device 14 | . 9 5 7 14 9 7 15 27 21 22 14 5 Storage 10 | . 14 14 14 14 9 7 6 5 9 10 16 6 Processor 7 | . . 8 6 . 8 15 13 11 9 2 7 2 Protection 1 | . . . . . . . 2 . 3 4 . . Energy Gun 5 | . 9 1 . . . . . . 2 6 21 7 Energy Cannon 7 | . . . 7 14 9 7 15 23 9 8 2 2 Ballistic Gun 3 | . 14 1 . . . 6 . . 3 15 4 1 Ballistic Cannon 1 | . . . . . . . 1 . 6 . . . Launcher 4 | . . 10 6 . 12 15 6 . 1 . . . Naked Turns 99 | . . . . . . . . . . . . 99 Heaviest Build 141 | 11 26 30 38 45 60 66 96 103 127 136 141 133 Greatest Support 70 | 40 40 40 20 20 20 40 28 28 46 69 70 70 Greatest Overweight (x) 36 | 1 . 7 1 2 2 20 3 3 36 4 35 14 Average Overweight (x) 2 | . . . 1 1 2 2 2 3 2 3 4 1 Largest Inventory Capacity 18 | 6 10 10 10 10 10 10 12 12 12 12 18 18 Average Capacity 11 | 5 8 10 10 10 10 10 11 12 12 12 14 9 Most Carried 18 | 4 9 9 10 10 9 10 12 12 12 12 18 17 Average Carried 9 | 2 6 7 9 9 8 9 9 11 7 10 12 8 Final Capacity 18 | 6 10 10 10 10 10 10 12 12 12 12 18 4 Final Carried 18 | 4 9 9 9 10 8 10 10 12 9 11 18 4 Class Distribution -------------------- 40% | Mutant 14% | Scavenger-Executioner 8% | Pyromaniac-Bomber 6% | Scavenger-Mutant 6% | Pyromaniac-Gunner 3% | Tank 3% | Derelict-Tank 3% | Scavenger-Tank Dominant Class ---------------- Mutant | -10/Materials Mutant | -10/Mines Scavenger-Mutant | -10/Exiles Mutant | -9/Mines Mutant | -8/Materials Mutant | -7/Factory Mutant | -6/Factory Pyromaniac-Bomber | -5/Factory Pyromaniac-Gunner | -5/Extension Scavenger-Executioner | -4/Factory Scavenger-Executioner | -4/Garrison Mutant | -3/Research Resources | -11 -10 -10 -10 -9 -8 -7 -6 -5 -5 -4 -4 -3 ----------- Run | Scr Mat Min Exi Min Mat Fac Fac Fac Ext Fac Gar Res Matter Collected 4483 | 192 229 237 . 30 60 19 373 133 1650 241 1091 228 Remotely . | . . . . . . . . . . . . . Salvage Created 5840 | . 208 49 . 153 333 161 257 553 2086 428 1202 410 Parts 256 | . 5 8 . 12 22 11 15 24 71 24 40 24 Haulers Intercepted 5 | . . . . . 1 . . 1 2 1 . . Recyclers Shooed 3 | . . . . . . . 1 . 2 . . . Parts Field Recycled . | . . . . . . . . . . . . . Retrieved Matter . | . . . . . . . . . . . . . Parts Self-Destructed . | . . . . . . . . . . . . . Prevented . | . . . . . . . . . . . . . Kills | -11 -10 -10 -10 -9 -8 -7 -6 -5 -5 -4 -4 -3 ------- Run | Scr Mat Min Exi Min Mat Fac Fac Fac Ext Fac Gar Res Combat Hostiles Destroyed 100 | . 3 5 . 7 5 9 6 13 28 2 17 5 Melee 4 | . . . . . 1 . . . . . . 3 Guns 17 | . 3 . . . . . . . 1 2 9 2 Cannons 30 | . . . . . . 2 3 4 21 . . . AOE 47 | . . 5 . 7 4 7 3 9 5 . 7 . Classes Destroyed 17 | . 3 3 . 2 4 1 1 . 2 . 1 . Worker 3 | . . . . 1 . 1 . . 1 . . . Builder 15 | . . . . . 5 . 1 1 6 1 . 1 Tunneler 2 | . . . . 2 . . . . . . . . Hauler 5 | . . . . . 1 . . 1 2 1 . . Recycler 4 | . 1 . . . 1 . . . 2 . . . Operator 4 | . . . . . 1 . . . 2 1 . . Watcher 10 | . 1 . . . 2 1 . 1 2 2 . 1 Swarmer 23 | . . 2 . 5 3 4 . 4 1 . 4 . Saboteur 1 | . . . . . . . . . . . 1 . Grunt 43 | . 3 1 . 3 1 3 2 8 15 1 5 1 Brawler 3 | . . . . . . . 1 1 1 . . . Sentry 7 | . . . . . 1 1 1 . 3 1 . . Demolisher 1 | . . 1 . . . . . . . . . . Hunter 12 | . . . . . . . . . 7 . 4 1 Programmer 8 | . . . . . . 1 2 . . . 2 3 Behemoth 2 | . . . . . . . . . 1 . 1 . Assembled 1 | . . 1 . . . . . . . . . . Thug 3 | . . . . . . . . . 1 1 1 . Best Kill Streak 7 | . 3 2 . 5 5 5 3 6 7 2 5 2 Combat Bots Only 5 | . 3 2 . 3 3 4 3 4 4 1 5 1 Max Kills in Single Turn 5 | . 1 2 . 3 2 5 2 3 2 2 5 1 Gunslinging . | . . . . . . . . . . . . . Exploded 5 | . . 2 . 3 2 4 1 2 2 . 5 . Melee 1 | . . . . . 1 . . . . . . 1 Uniques/NPCs Destroyed . | . . . . . . . . . . . . . Combat | -11 -10 -10 -10 -9 -8 -7 -6 -5 -5 -4 -4 -3 -------- Run | Scr Mat Min Exi Min Mat Fac Fac Fac Ext Fac Gar Res Damage Taken 8994 | . 74 791 . 135 102 50 24 207 1922 246 2123 3320 Core 2083 | . 16 180 . . 13 . . 23 349 49 139 1314 Absorbed by Shields 1046 | . . . . . . . . . 214 197 635 . Core Remaining (%) 73 | 100 . . . 21 97 100 100 . 13 . 83 . Volleys Fired 240 | . 16 10 . 9 7 23 6 12 73 21 41 22 Largest 6 | . 2 2 . 1 1 4 4 4 5 6 6 5 Hottest 505 | . 70 66 . 100 100 194 340 376 418 339 505 411 Shots Fired 797 | . 32 12 . 9 7 27 16 43 272 110 227 42 Gun 374 | . 32 . . . . 20 . . 18 86 190 28 Cannon 379 | . . . . 9 7 5 14 43 237 24 31 9 Launcher 36 | . . 9 . . . 2 2 . 17 . 6 . Special 8 | . . 3 . . . . . . . . . 5 Kinetic 330 | . 16 . . . . 21 . . 96 63 122 12 Thermal 381 | . 16 3 . 9 7 4 14 43 159 29 86 11 Explosive 35 | . . 9 . . . 2 1 . 17 . 6 . Electromagnetic 46 | . . . . . . . 1 . . 18 13 14 Robot Hit Streak 37 | . 17 7 . 2 3 9 7 14 37 20 34 13 Robot Miss Streak 5 | . 1 . . 1 2 3 1 1 4 2 5 2 Penetration Max 2 | . . . . . . . . . 2 1 . . Secondary Targets 1 | . 1 . . . . . . . . . . . Max Gunslinging Chain 1 | . 1 . . . . . . . . . . . Shots Hit Robots 555 | . 29 4 . 2 11 14 5 17 187 85 160 41 Core Hits 287 | . 9 10 . 12 10 13 10 21 101 27 53 21 Critical Hits 46 | . 1 . . 1 . . 1 3 34 2 4 . Critical Kills 10 | . . . . . . . . 1 7 1 1 . Critical Parts Destroyed 24 | . 1 . . 1 . . 1 2 15 1 3 . Melee Attacks 82 | . . . . . 28 2 6 . 14 2 16 14 Thermal 5 | . . . . . . . . . . . . 5 Impact 30 | . . . . . 28 2 . . . . . . Slashing . | . . . . . . . . . . . . . Piercing 47 | . . . . . . . 6 . 14 2 16 9 Sneak Attacks 7 | . . . . . 4 . . . 2 . . 1 Combat Hostiles 1 | . . . . . . . . . . . . 1 Follow-up Attacks 1 | . . . . . . . . . . . . 1 Damage Inflicted 23311 | . 347 363 . 1450 1314 2031 1232 2853 6752 1773 4191 1005 Guns 5357 | . 347 . . . . 137 . . 362 1356 2503 652 Cannons 7898 | . . . . 249 343 373 577 1559 4100 360 278 59 Explosions 8100 | . . 355 . 1201 560 1521 655 1294 1913 . 601 . Melee 1833 | . . . . . 411 . . . 373 . 809 240 Ramming 123 | . . 8 . . . . . . 4 57 . 54 Kinetic 4289 | . 174 . . . . 163 . . 1621 1030 993 308 Thermal 13379 | . 173 . . 1450 903 1439 1191 2853 2996 529 1584 261 Explosive 3184 | . . 355 . . . 429 41 . 1758 . 601 . Electromagnetic 503 | . . . . . . . . . . 157 204 142 Impact 411 | . . . . . 411 . . . . . . . Slashing . | . . . . . . . . . . . . . Piercing 1422 | . . . . . . . . . 373 . 809 240 Highest Corruption 18 | . . . . . 1 1 1 . . . . 18 Average Corruption 5 | . . . . . 1 1 1 . . . . 14 Corruption Purged . | . . . . . . . . . . . . . Effects 36 | . . . . . 1 2 2 . . . . 31 Message Errors 6 | . . . . . . 1 2 . . . . 3 Matter Fused 10 | . . . . . . . . . . . . 10 Heat Flow Errors 2 | . . . . . . . . . . . . 2 Energy Discharges 5 | . . . . . . . . . . . . 5 Data Loss (minor) 2 | . . . . . . 1 . . . . . 1 Data Loss (major) 1 | . . . . . . . . . . . . 1 Alerts 1 | . . . . . . . . . . . . 1 Misdirections 6 | . . . . . . . . . . . . 6 Targeting Errors 3 | . . . . . 1 . . . . . . 2 Overload Shots . | . . . . . . . . . . . . . Overflow Damage 1748 | . . . . 192 302 319 161 451 210 16 88 9 Projectiles 762 | . . . . 67 98 98 105 317 45 . 32 . Explosions 623 | . . . . 125 10 221 56 134 77 . . . Melee 363 | . . . . . 194 . . . 88 16 56 9 Knockbacks 4 | . . . . . 4 . . . . . . . Impact 4 | . . . . . 4 . . . . . . . Kinetic . | . . . . . . . . . . . . . Secondary . | . . . . . . . . . . . . . Self-Inflicted Damage 303 | . . 53 . 76 . . . . 98 28 25 23 Shots 8 | . . 2 . 2 . . . . 3 . 1 . Rammed 21 | . . 3 . . . . . . 2 3 . 13 Targets Rammed 21 | . . 3 . . . . . . 2 3 . 13 Kicked . | . . . . . . . . . . . . . Crushed . | . . . . . . . . . . . . . Highest Temperature 1078 | . 5 . . 15 . 15 150 199 1078 310 449 494 Average Temperature 156 | . 5 . . 8 . 8 71 103 202 98 164 173 Received Heat Transfer 1044 | . 54 54 . 18 . 9 . 81 432 52 110 234 Effects 27 | . . . . . . . . . 19 1 5 2 Shutdowns 9 | . . . . . . . . . 6 . 1 2 Energy Bleed 2 | . . . . . . . . . 1 1 . . Interference 6 | . . . . . . . . . 3 . 3 . Matter Decay 3 | . . . . . . . . . 2 . 1 . Short Circuit 2 | . . . . . . . . . 2 . . . Damage (minor) 2 | . . . . . . . . . 2 . . . Damage (major) 2 | . . . . . . . . . 2 . . . Damage (core) 1 | . . . . . . . . . 1 . . . Siege Activations . | . . . . . . . . . . . . . Robots Corrupted . | . . . . . . . . . . . . . Combat Hostiles . | . . . . . . . . . . . . . Parts Fried 8 | . . . . . 6 . . . . . 1 1 Impact Corruptions 11 | . . . . . 10 . . . . 1 . . Robots Melted 2 | . . . . . . . . . 1 . 1 . Combat Hostiles 2 | . . . . . . . . . 1 . 1 . Parts Melted 24 | . 1 . . 1 . . 1 . 19 . 2 . Heat Transferred 15898 | . 518 . . 1440 720 1130 1160 2540 5298 717 2042 333 Parts Sabotaged 4 | . . . . . . . . . . . 4 . Parts Stolen . | . . . . . . . . . . . . . Parts Stripped . | . . . . . . . . . . . . . Power Chain Reactions . | . . . . . . . . . . . . . Missiles Intercepted . | . . . . . . . . . . . . . Alert | -11 -10 -10 -10 -9 -8 -7 -6 -5 -5 -4 -4 -3 ------- Run | Scr Mat Min Exi Min Mat Fac Fac Fac Ext Fac Gar Res Peak Influence 940 | . 121 90 . 314 275 270 159 751 484 227 940 547 Initial 460 | . . 1 . . 37 107 68 27 265 53 70 460 Average 270 | . 23 35 . 130 100 192 60 416 352 88 581 281 Maximum Alert Level 3 | . . . . 1 1 1 . 3 2 1 3 2 Low Security (%) 47 | 100 100 100 . 83 86 37 100 26 4 95 11 54 Level 1 21 | . . . . 16 13 62 . 13 48 4 7 5 Level 2 22 | . . . . . . . . 42 46 . 34 40 Level 3 8 | . . . . . . . . 17 . . 46 . Level 4 . | . . . . . . . . . . . . . Level 5 . | . . . . . . . . . . . . . High Security . | . . . . . . . . . . . . . Max Security . | . . . . . . . . . . . . . Squads Dispatched 28 | . 1 1 . . 3 2 3 1 6 7 . 4 Investigation 9 | . 1 1 . . 1 1 1 1 2 . . 1 Extermination 6 | . . . . . . 1 2 . . 1 . 2 Reinforcement 9 | . . . . . 2 . . . 4 2 . 1 Assault . | . . . . . . . . . . . . . Garrison 4 | . . . . . . . . . . 4 . . Intercept . | . . . . . . . . . . . . . Construction Impeded 3 | . . . . . 1 . . . 2 . . . Haulers Reinforced 1 | . . . . . . . . . . 1 . . Stealth | -11 -10 -10 -10 -9 -8 -7 -6 -5 -5 -4 -4 -3 --------- Run | Scr Mat Min Exi Min Mat Fac Fac Fac Ext Fac Gar Res Distress Signals 10 | . . 1 . . 2 . 1 . 3 . . 3 Communications Jammed . | . . . . . . . . . . . . . Distress Signals . | . . . . . . . . . . . . . Times Spotted 176 | . 4 26 . 11 6 6 5 15 46 16 19 22 Peak Tracking Total 14 | . 3 14 . 4 5 3 2 5 6 5 5 8 Tactical Retreats 13 | . . 2 . 2 1 . . 2 2 . 1 3 Traps | -11 -10 -10 -10 -9 -8 -7 -6 -5 -5 -4 -4 -3 ------- Run | Scr Mat Min Exi Min Mat Fac Fac Fac Ext Fac Gar Res Traps Triggered 24 | . 1 . . . 1 . 3 2 6 1 9 1 Indirectly . | . . . . . . . . . . . . . Trap Hack Attempts . | . . . . . . . . . . . . . Triggered . | . . . . . . . . . . . . . Disarmed . | . . . . . . . . . . . . . Reprogrammed . | . . . . . . . . . . . . . Reused . | . . . . . . . . . . . . . Traps Extracted . | . . . . . . . . . . . . . Installed . | . . . . . . . . . . . . . Triggered 1 | . . . . . . . . . 1 . . . Machines | -11 -10 -10 -10 -9 -8 -7 -6 -5 -5 -4 -4 -3 ---------- Run | Scr Mat Min Exi Min Mat Fac Fac Fac Ext Fac Gar Res Machines Disabled 50 | . . 1 . 1 1 10 4 13 12 2 4 2 Max in Single Turn 6 | . . 1 . 1 1 3 2 6 2 1 1 1 Garrison Relay 3 | . . . . . . . . . . . 3 . Energy Cycler 2 | . . . . . . . . . 2 . . . Machines Sabotaged . | . . . . . . . . . . . . . Garrisons Compromised . | . . . . . . . . . . . . . Overloaded Fab Kills . | . . . . . . . . . . . . . Fab Network Shutdowns . | . . . . . . . . . . . . . Hacking | -11 -10 -10 -10 -9 -8 -7 -6 -5 -5 -4 -4 -3 --------- Run | Scr Mat Min Exi Min Mat Fac Fac Fac Ext Fac Gar Res Machines Accessed 34 | . 5 1 2 . 3 4 3 1 11 2 . 2 Terminals 27 | . 4 1 . . 2 3 3 1 11 1 . 1 Fabricators 1 | . . . . . . . . . . . . 1 Repair Stations . | . . . . . . . . . . . . . Recycling Units 2 | . 1 . . . 1 . . . . . . . Scanalyzers . | . . . . . . . . . . . . . Garrison Access 2 | . . . . . . 1 . . . 1 . . Total Hacks 90 | . 8 4 24 . 7 9 5 1 21 7 . 4 Successful 53 | . 5 1 24 . 3 4 2 1 7 4 . 2 Failed 37 | . 3 3 . . 4 5 3 . 14 3 . 2 Catastrophic 8 | . . 1 . . 1 1 1 . 2 1 . 1 Database Lockouts . | . . . . . . . . . . . . . Manual 26 | . 6 3 1 . 5 6 2 . 2 1 . . Terminals 57 | . 7 4 . . 6 7 5 1 21 5 . 1 Fabricators 3 | . . . . . . . . . . . . 3 Repair Stations . | . . . . . . . . . . . . . Recycling Units 2 | . 1 . . . 1 . . . . . . . Scanalyzers . | . . . . . . . . . . . . . Garrison Access 4 | . . . . . . 2 . . . 2 . . Terminal Hacks 43 | . 2 1 24 . 2 2 1 1 7 3 . . Record 28 | . . . 24 . 1 1 1 . . 1 . . Robot Schematic 1 | . . . . . . 1 . . . . . . Prototype ID Bank 2 | . 1 . . . . . . . . 1 . . Open Door 4 | . . . . . . . . . 4 . . . Branch Access Points 1 | . . . . . . . . 1 . . . . Alert Level 1 | . . . . . . . . . 1 . . . Unreport Threat 1 | . . . . . . . . . 1 . . . Locate Traps 1 | . 1 . . . . . . . . . . . Maintenance Status 1 | . . . . . 1 . . . . . . . Zone Layout 3 | . . 1 . . . . . . 1 1 . . Fabricator Hacks 2 | . . . . . . . . . . . . 2 Load Schematic 1 | . . . . . . . . . . . . 1 Build 1 | . . . . . . . . . . . . 1 Repair Station Hacks . | . . . . . . . . . . . . . Recycling Unit Hacks . | . . . . . . . . . . . . . Scanalyzer . | . . . . . . . . . . . . . Garrison Access Hacks 1 | . . . . . . . . . . 1 . . Unlock Access 1 | . . . . . . . . . . 1 . . Unauthorized Hacks 7 | . 3 . . . 1 2 1 . . . . . Terminals 6 | . 3 . . . . 2 1 . . . . . Assimilate 2 | . 2 . . . . . . . . . . . Detonate 3 | . . . . . . 2 1 . . . . . Operators 1 | . 1 . . . . . . . . . . . Fabricators . | . . . . . . . . . . . . . Repair Stations . | . . . . . . . . . . . . . Recycling Units 1 | . . . . . 1 . . . . . . . Tunnel 1 | . . . . . 1 . . . . . . . Scanalyzers . | . . . . . . . . . . . . . Garrison Access . | . . . . . . . . . . . . . Data Cores Recovered . | . . . . . . . . . . . . . Used . | . . . . . . . . . . . . . Hacking Detections 22 | . 1 1 . . 2 4 2 . 9 1 . 2 Full Trace Events 7 | . . 1 . . 2 1 . . 2 . . 1 Feedback Events 1 | . . . . . . 1 . . . . . . Corruption 1 | . . . . . . 1 . . . . . . Feedback Blocked . | . . . . . . . . . . . . . Robot Schematics Acquired 1 | . . . . . . 1 . . . . . . Robots Built 1 | . . . . . . . . . . . . 1 Matter 153 | . . . . . . . . . . . . 153 Time 27 | . . . . . . . . . . . . 27 Total Robot Build Rating 1 | . . . . . . . . . . . . 1 Part Schematics Acquired . | . . . . . . . . . . . . . Parts Built . | . . . . . . . . . . . . . Matter . | . . . . . . . . . . . . . Time . | . . . . . . . . . . . . . Total Part Build Rating . | . . . . . . . . . . . . . Parts Repaired . | . . . . . . . . . . . . . Time . | . . . . . . . . . . . . . Parts Recycled . | . . . . . . . . . . . . . Recycled Matter . | . . . . . . . . . . . . . Retrieved Matter . | . . . . . . . . . . . . . Retrieved Components . | . . . . . . . . . . . . . Parts Scanalyzed . | . . . . . . . . . . . . . Part Schematics Acquired . | . . . . . . . . . . . . . Parts Damaged . | . . . . . . . . . . . . . Bothacking | -11 -10 -10 -10 -9 -8 -7 -6 -5 -5 -4 -4 -3 ------------ Run | Scr Mat Min Exi Min Mat Fac Fac Fac Ext Fac Gar Res Used RIF Installer 1 | . . . . . . . . . . . 1 . Robots Hacked 2 | . . . . . . . . . . . . 2 Non-combat . | . . . . . . . . . . . . . Combat 2 | . . . . . . . . . . . . 2 Robot Hacks Applied 2 | . . . . . . . . . . . . 2 overwrite_iff 1 | . . . . . . . . . . . . 1 formatsys_high 1 | . . . . . . . . . . . . 1 Relay Couplers Released 13 | . . . . . . . . . . . 13 . Machine Destruction 13 | . . . . . . . . . . . 13 . Attached 4 | . . . . . . . . . . . . 4 Robots Rewired 11 | . . . . . . . . . 11 . . . Allies Hacked . | . . . . . . . . . . . . . Hacks Repelled . | . . . . . . . . . . . . . Allies | -11 -10 -10 -10 -9 -8 -7 -6 -5 -5 -4 -4 -3 -------- Run | Scr Mat Min Exi Min Mat Fac Fac Fac Ext Fac Gar Res Total Allies 23 | . . . . 3 . . . . 17 . . 3 Largest Group 9 | . . . . 3 2 . . . 9 9 1 1 Highest-Rated Group 382 | . . . . 40 32 . . . 382 382 26 64 Highest-Rated Ally 137 | . . . . 16 16 . . . 137 137 26 64 Total Orders 4 | . . . . . 2 . 2 . . . . . STAY 1 | . . . . . 1 . . . . . . . GUARD 1 | . . . . . 1 . . . . . . . EXPLORE 2 | . . . . . . . 2 . . . . . Ally Attacks 174 | . . . . 12 1 . . . 67 88 . 6 Total Damage 3181 | . . . . 124 14 . . . 1227 1660 . 156 Kills 26 | . . . . 5 . . . . 12 8 . 1 Allies Corrupted 2 | . . . . . . . 1 . . . . 1 Allies Melted 1 | . . . . . . . . . 1 . . . Intel | -11 -10 -10 -10 -9 -8 -7 -6 -5 -5 -4 -4 -3 ------- Run | Scr Mat Min Exi Min Mat Fac Fac Fac Ext Fac Gar Res Robot Analysis Total . | . . . . . . . . . . . . . Derelict Logs Recovered 1 | . . . . 1 . . . . . . . . Drone Launches 2 | . . . . . . . 2 . . . . . Drone Recoveries . | . . . . . . . . . . . . . Exploration | -11 -10 -10 -10 -9 -8 -7 -6 -5 -5 -4 -4 -3 ------------- Run | Scr Mat Min Exi Min Mat Fac Fac Fac Ext Fac Gar Res Turns Passed 11553 | 68 479 475 673 436 695 1006 1153 461 2642 641 1824 1000 Spaces Moved 6361 | 46 257 350 741 335 399 583 681 289 970 342 810 558 Core 202 | 15 . 1 . . . 2 . . 1 . 5 178 Treads 1084 | 31 257 35 . . . 59 . . 680 5 15 2 Legs 175 | . . 48 . . . . . . . . 4 123 Wheels 4520 | . . 105 741 335 399 522 681 289 70 337 786 255 Hover 380 | . . 161 . . . . . . 219 . . . Flight . | . . . . . . . . . . . . . Fastest Speed 50 | 50 160 80 90 90 100 100 120 130 130 140 120 50 Average Speed 134 | 125 160 118 90 95 100 127 125 130 208 140 145 106 Slowest Speed 1850 | 160 160 400 90 100 100 1050 130 130 1850 180 1800 750 Overloaded Moves . | . . . . . . . . . . . . . Propulsion Burnouts . | . . . . . . . . . . . . . Robots Hopped . | . . . . . . . . . . . . . Cave-ins Triggered . | . . . . . . . . . . . . . Exploration Rate (%) 40 | 4 47 62 93 68 26 13 23 9 80 14 71 13 Regions Visited 12 Branch Regions 4 Pre-discovered Areas 2 | . . . 1 . 1 . . . . . . . Known Exits Taken 2 | . . . . . . . . 1 . 1 . . Unknown Exits Taken 9 | 1 1 1 1 1 1 1 1 . 1 . . . Scrap Searched 3 | . . 1 . 2 . . . . . . . . Spaces Dug 60 | . . . . 18 16 1 3 . 21 1 . . Terrain Destroyed 930 | . . 34 . 129 103 118 27 162 259 4 88 6 Melee 21 | . . . . . 16 1 3 . . 1 . . Projectile 87 | . . . . 6 4 1 . 9 36 3 22 6 AOE 822 | . . 34 . 123 83 116 24 153 223 . 66 . Terrain Rammed . | . . . . . . . . . . . . . Walls Destroyed . | . . . . . . . . . . . . . Machines Disabled . | . . . . . . . . . . . . . Actions | -11 -10 -10 -10 -9 -8 -7 -6 -5 -5 -4 -4 -3 --------- Run | Scr Mat Min Exi Min Mat Fac Fac Fac Ext Fac Gar Res Total 8678 | 54 292 395 747 424 631 809 955 326 1389 440 1306 910 Wait 1402 | . 10 7 . 77 190 172 218 14 130 27 291 266 Move 6349 | 45 256 349 740 334 398 582 680 288 969 341 809 558 Hop . | . . . . . . . . . . . . . Pick Up 85 | 4 6 6 2 2 . 6 13 . 18 6 19 3 Fast Attach 88 | 5 2 4 1 . 3 6 6 2 22 9 19 9 Attach 79 | . 1 8 1 . 3 3 5 . 29 5 13 11 Detach 21 | . . 2 . . 1 2 1 . 8 3 2 2 Swap 33 | . . . . 1 . 3 2 2 9 3 13 . Drop 108 | . 1 6 3 1 1 10 18 . 28 12 17 11 Fire 240 | . 16 10 . 9 7 23 6 12 73 21 41 22 Melee 81 | . . . . . 28 2 6 . 14 2 16 13 Ram 16 | . . . . . . . . . . 3 . 13 Kick 3 | . . 3 . . . . . . . . . . Crush 2 | . . . . . . . . . 2 . . . Escape Stasis 91 | . . . . . . . . 8 11 8 64 . Rewire 80 | . . . . . . . . . 76 . 2 2 Trap . | . . . . . . . . . . . . . Miscellaneous . | . . . . . . . . . . . . . Route ------- -11/Scrapyard -10/Materials (discovered 2 exits: [*Mat] / *Min) -10/Mines -10/Exiles (discovered 2 exits: [*Min x2]) -9/Mines -8/Materials -7/Factory -6/Factory -5/Factory (discovered 5 exits: *Fac / Upp x2 / *Ext x2) -5/Extension (discovered 2 exits: *Fac / [*Cet]) -4/Factory -4/Garrison (discovered 2 exits: *Res x2) -3/Research History --------- Turn | Location | Event 35 | -11/Scrapyard | Discovered new exit (range 15) 69 | -11/Scrapyard | Entered Materials 249 | -10/Materials | Discovered new exit (range 11) 315 | -10/Materials | Build established: Mutant 461 | -10/Materials | Discovered new exit (range 9) 548 | -10/Materials | Entered Mines 583 | -10/Mines | Assembled infested the area 588 | -10/Mines | Assisted by a Guerilla fighting off Assembled 631 | -10/Mines | Core integrity fell below 50% 718 | -10/Mines | Lost 4 parts (1p1n2w) 1019 | -10/Mines | Deemed a non-threat by the Exiles lab entrance 1019 | -10/Mines | Discovered new exit (range 5) 1023 | -10/Mines | Entered Exiles 1050 | -10/Exiles | Met 8R-AWN 1063 | -10/Exiles | Met EX-HEX 1111 | -10/Exiles | Met EX-DEC 1168 | -10/Exiles | Discovered new exit (range 14) 1231 | -10/Exiles | Learned location of Zion (-6) 1251 | -10/Exiles | Met EX-BIN 1264 | -10/Exiles | Aligned with FarCom system 1265 | -10/Exiles | Given EX-Vault access code 1307 | -10/Exiles | Opened EX-Vault 1312 | -10/Exiles | Found Prototype Energy Cannon 1312 | -10/Exiles | Identified YOLO Cannon 1343 | -10/Exiles | Warned to stay clear of 0b10 Research branches 1410 | -10/Exiles | Visited The Gauntlet 1593 | -10/Exiles | Discovered new exit (range 14) 1620 | -10/Exiles | Build established: Scavenger-Mutant 1696 | -10/Exiles | Left Exiles lab with YOLO Cannon 1696 | -10/Exiles | Entered Mines 1915 | -9/Mines | Assisted by bots powering up and referring to "LRC-V3" 2076 | -9/Mines | Learned Materials terminal intel 2092 | -9/Mines | Discovered new exit (range 7) 2132 | -9/Mines | Entered Materials 2132 | -8/Materials | Accompanied by 2 allies 2132 | -8/Materials | Evolved 4 slots: Power x1, Utility x1, Weapon x2 2133 | -8/Materials | Loaded intel: 12 terminal locations 2187 | -8/Materials | Build established: Mutant 2573 | -8/Materials | Discovered new exit (range 16) 2827 | -8/Materials | Entered Factory 2827 | -7/Factory | Evolved 2 slots: Utility x1, Weapon x1 3757 | -7/Factory | Discovered new exit (range 8) 3833 | -7/Factory | Entered another Factory area 3833 | -6/Factory | Evolved 2 slots: Utility x2 4722 | -6/Factory | Discovered new exit (range 15) 4790 | -6/Factory | Build established: Pyromaniac-Bomber 4986 | -6/Factory | Entered another Factory area 4986 | -5/Factory | Evolved 2 slots: Utility x2 5365 | -5/Factory | Identified exit to Upper Caves 5365 | -5/Factory | Identified exit to Extension 5444 | -5/Factory | Discovered new exit (range 16) 5447 | -5/Factory | Entered Extension 5580 | -5/Extension | Core integrity fell below 50% 5610 | -5/Extension | Lost 5 parts (1p1n1u2w) 5946 | -5/Extension | Build established: Pyromaniac-Gunner 6170 | -5/Extension | Rescued a captive Derelict 6261 | -5/Extension | Lost 4 parts (4w) 6283 | -5/Extension | Core integrity fell below 20% 6322 | -5/Extension | Disrupted transfer network 6336 | -5/Extension | Lost 4 parts (2u2w) 6497 | -5/Extension | Rescued a captive Derelict 6498 | -5/Extension | Rescued a captive Derelict 7140 | -5/Extension | Build established: Derelict-Tank 7219 | -5/Extension | Spotted B-75 Beast 7232 | -5/Extension | Allies destroyed B-75 Beast 7249 | -5/Extension | Spotted B-75 Beast 7259 | -5/Extension | Destroyed B-75 Beast 7573 | -5/Extension | Energy Cycler disabled 7574 | -5/Extension | Rescued a captive Derelict 7575 | -5/Extension | Rescued a captive Derelict 7576 | -5/Extension | Rescued a captive Derelict 7576 | -5/Extension | Rescued a captive Derelict 7580 | -5/Extension | Rescued a captive Derelict 7626 | -5/Extension | Disrupted transfer network 7852 | -5/Extension | Build established: Tank 8035 | -5/Extension | Discovered new exit (range 12) 8037 | -5/Extension | Discovered new exit (range 8) 8076 | -5/Extension | Rescued A7 8089 | -5/Extension | Entered Factory 8089 | -4/Factory | Accompanied by 9 allies (A7) 8089 | -4/Factory | Evolved 2 slots: Propulsion x1, Weapon x1 8212 | -4/Factory | Spotted B-86 Titan 8222 | -4/Factory | Allies destroyed B-86 Titan 8435 | -4/Factory | Found Prototype Launcher 8436 | -4/Factory | Identified Mni. Smartbomb Launcher 8580 | -4/Factory | Garrison activated, responded to threat 8582 | -4/Factory | Garrison activated, responded to threat 8673 | -4/Factory | Build established: Scavenger-Executioner 8727 | -4/Factory | Identified exit to Garrison 8730 | -4/Factory | Entered Garrison 8730 | -4/Garrison | Accompanied by 1 ally 8784 | -4/Garrison | Triggered checkpoint 8864 | -4/Garrison | Triggered checkpoint 8931 | -4/Garrison | Garrison Relay disabled 9099 | -4/Garrison | Lost 7 parts (1p1n3u2w) 9314 | -4/Garrison | Triggered checkpoint 9658 | -4/Garrison | Spotted B-86 Titan 9688 | -4/Garrison | Triggered checkpoint 9697 | -4/Garrison | Destroyed B-86 Titan 9728 | -4/Garrison | Lost 4 parts (2n1u1w) 9944 | -4/Garrison | Discovered new exit (range 10) 10044 | -4/Garrison | Triggered checkpoint 10137 | -4/Garrison | Garrison Relay disabled 10320 | -4/Garrison | Triggered checkpoint 10382 | -4/Garrison | Discovered new exit (range 9) 10400 | -4/Garrison | Installed Relay Interface Framework 10472 | -4/Garrison | Garrison Relay disabled 10554 | -4/Garrison | Entered Research 10554 | -3/Research | Evolved 2 slots: Utility x1, Weapon x1 10962 | -3/Research | Spotted B-86 Titan 11020 | -3/Research | Core integrity fell below 50% 11046 | -3/Research | System corruption reached 10% 11083 | -3/Research | Lost 22 parts (2p3n9u8w) 11104 | -3/Research | Fabricated R-06 Scavenger? 11309 | -3/Research | Build established: Mutant 11451 | -3/Research | Core integrity fell below 20% 11554 | -3/Research | Destroyed by Fusion Bomb Trap Last Messages --------------- 11479_ Acquired Wheel. 11481_ W-44 Eye distress signal alerts nearby ally. 11487_ System corrupted: Matter fused (-6). 11503_ Recycling Unit disabled. 11506_ Wheel destroyed. 11509_ System corrupted: Matter fused (-5). 11521_ Potential Refractor disabled. 11522_ ALERT: Hostiles spotted, dispatching reinforcements to Terminal R008. 11522_ U-05 Engineer lays Concrete. 11523_ Wheel destroyed. 11525_ System corrupted: Energy discharge (-36). 11528_ K-01 Serf cleans the Antiparticle Reservoir. 11530_ U-05 Engineer lays Concrete. 11532_ K-01 Serf cleans the Antiparticle Reservoir. 11541_ Dropped Myomer Leg. 11541_ Dropped Helical Railgun. 11544_ System corrupted: Matter fused (-7). 11550_ O-24 Administrator: "IFF HANDSHAKE FAILED. SECURING TERMINAL." 11554_ Triggered Fusion Bomb Trap. 11554_ An explosion rips through the floor. Map ----- +----------------------------------------------------+ | ?????????????????????# ????????????# #" | | ?????????????????????# ############# #" | | ?????????????????????# #" | | ?????????????????????+ [= #" | | ?????????????????????# + | | ?????????????????????# # | | ?????????????????????## #######+#### # | | ??????????????????????# #??????????# # | | ??????????????????????#p #??????????# !!!# | | ??????????????????????# p#??????????# !!!## | | ???????????????######?# #??????????# !!!#? | | ???????????????# !# #??????????# #? | | ???????????????# !!! # #??????????# #? | | ???????????????# !!! + #??????????# #? | | ???????????????# !! # #??????????# w #? | | ???????????????# =# #?######???# ?? | | ???????????????# ! ?# # #????? ?? | | ???????????????######?# # #??????? ? ?? | | ??????????????????????# + #??????????? ?? | | ??????????????????????# # #???????????????? | | ??????????????????????# # #???????????????? | | ??????????????????????# #? ! #???????????????? | | ??????????????????????# #?######???????????????? | | ??????????????????????# #??????????????????????? | | ??????????????????????# #??????????????????????? | | ??????????????????????# @#??????????????????????? | | ??????????????????????# #??????????????????????? | | ??????????????????????# #??????????????????????? | | ??????????????????????# #??????????????????????? | | ??????????????????????# #??????????????????????? | | ?????????????????????? ??????????????????????? | | ?????????????????????? ??????????????????????? | | ?????????????????????# ?????o????????????????? | | ?????????????????????# ??????????????????????? | | ?????????????????????## #??????????????????????? | | ??????????????????????# ???????????????????????? | | ??????????????????????# ???????????????????????? | | ??????????????????????# ???????????????????????? | | ??????????????????????? ???????????????????????? | | ??????????????????????? ???????????????????????? | | ??????????????????????? ???????????????????????? | | ????????????????????????????????????????????????? | | ???????????????????????Y????????????????????????? | | ????????????????????????????????????????????????? | | ????????????????????????????????????????????????? | | ????????????????????????????????????????????????? | | ????????????????????????????????????????????????? | | ????????????????????????????????????????????????? | | ????????????????????????????????????????????????? | | ????????????????????????????????????????????????? | +----------------------------------------------------+ Best States ------------- Heat Dissipation 115 Coolant Potential 80 Energy Generation 41 Energy Capacity 1410 Matter Stores 440 Matter Capacity 450 Sight Range 16 Robot Scan Range 16 Terrain Scan Density 10 Power Amplification 20 Base Temperature (-) 150 Armor Coverage 150 Resistance: KI 45 Resistance: TH 40 Resistance: EX 20 Resistance: EM 20 Resistance: I 20 Resistance: S 20 Resistance: P 20 Weapon Shielding 33 Phase Shifting 10 Evasion (%) 50 Targeting Accuracy 22 Target Analysis 6 Core Analysis 8 Recoil Reduction 3 Particle Charging 20 Offensive Hacking 10 Relay Coupler Types 87 Relay Coupler Value 4 Item Schematics ----------------- None Robot Schematics ------------------ R-06 Scavenger | -7/Factory | Hacked Fabricated ------------ R-06 Scavenger | x1 | -3/Research Alien Tech Used ----------------- None Achievements -------------- Brute Force Dangerous Findings Executioner Prison Break Respectable Loadout Challenges ------------ None Game ------ Seed SupersonicCombatRecalibrator Manual? 0 Play Time 02:48:30 Cumulative 35.6 hours Start 2020.09.23 @ 11:55:58 End 2020.09.23 @ 15:06:13 Sessions 1 Manual Loads 0 Difficulty Adventurer Special Mode None Game No. 49 Rogue 30 Adventurer 18 Explorer 1 Win Type - Total 0 Types 0/0/0/0/0/0/0/0/0 Lore% 24 Gallery% 34 Achievement% 27 Wizard Run 0 Options --------- ASCII 0 Keyboard 0 Movement Numpad Keybinds 0 Fullscreen 1 Font 14/SmallcapsGlow Map View 84x54 Tactical HUD 1 Map Filters NONE Filters NONE Steam 1 RUN: 9db09361-87cb-4035-a353-97c26c521607